Cogmind - Beta 11.1 @@@ ROGUE MODE // 2022.06.13 @ 09:51:33 Player: Delirus Result: Destroyed by as-81795 with Assembled Maul Performance ------------- Evolutions (0) 0 Regions Visited (4) 800 Robots Destroyed (24) 120 Value Destroyed (722) 722 Prototype IDs (0) 0 Alien Tech Used (0) 0 Bonus (363) 363 TOTAL SCORE: 2005 Bonus ------- Follower Combat Kills 70 Aligned with FarCom 300 Friendly Fire -7 Cogmind --------- Core Integrity 0/250 Matter 136/300 Energy 159/160 System Corruption 0% Temperature Cool (90) Movement Rolling (145) Ox3 Location -9/Mines Parts ------- > --- POWER (1) -------- Light Nuclear Core > --- PROPULSION (2) --- Compact Wheel Compact Wheel > --- UTILITY (2) ------ High-capacity Storage Unit Hacking Suite > --- WEAPON (2) ------- Pulse Rifle Heavy Assault Rifle > --- INVENTORY (20) --- Improved Heat Sink Medium Storage Unit Large Matter Pod (150) Structural Scanner ECM Suite Reaction Control System Light Armor Plating Hacking Suite System Shield Improved Trap Extractor (0/6) Supersonic Drone Bay Particle Cannon Heavy Assault Rifle Grenade Launcher Mining Laser Heavy Flail Makeshift Hammer Peak State ------------ > --- POWER ------------ Light Nuclear Core > --- PROPULSION ------- Light Treads Compact Wheel > --- UTILITY ---------- High-capacity Storage Unit Hacking Suite > --- WEAPON ----------- Minigun Improved Grenade Launcher > --- INVENTORY -------- Light Nuclear Core Compact Wheel Improved Heat Sink Medium Storage Unit Large Matter Pod Structural Scanner ECM Suite Reaction Control System Light Armor Plating Hacking Suite System Shield Improved Trap Extractor Supersonic Drone Bay Pulse Rifle Particle Cannon Heavy Assault Rifle Heavy Assault Rifle Grenade Launcher Mining Laser Heavy Flail [Rating: 19] Favorites ----------- Power Light Nuclear Core Engine Light Ion Engine Power Core Light Nuclear Core Propulsion Light Treads Treads Light Treads Wheel Compact Wheel Utility High-capacity Storage Unit Device Improved Heat Sink Storage High-capacity Storage Unit Hackware Hacking Suite Weapon Particle Cannon Energy Gun Small Laser Energy Cannon Particle Cannon Ballistic Gun Light Assault Rifle Launcher Improved Grenade Launcher Special Weapon Mining Laser Slashing Weapon Mining Claw Build | -11 -10 -10 -10 -9 ------- Run | Scr Mat Min Exi Min Slots Evolved . | . . . . . Power . | . . . . . Propulsion . | . . . . . Utility . | . . . . . Weapon . | . . . . . Parts Attached 53 | 6 31 9 . 7 Power 4 | 1 1 1 . 1 Engine 2 | 1 1 . . . Core 2 | . . 1 . 1 Reactor . | . . . . . Propulsion 21 | 2 14 4 . 1 Treads 10 | 1 7 2 . . Leg . | . . . . . Wheel 11 | 1 7 2 . 1 Hover . | . . . . . Flight . | . . . . . Utility 8 | 1 7 . . . Device 4 | . 4 . . . Storage 3 | 1 2 . . . Processor . | . . . . . Hackware 1 | . 1 . . . Protection . | . . . . . Artifact . | . . . . . Weapon 20 | 2 9 4 . 5 Energy Gun 3 | 1 1 . . 1 Energy Cannon 5 | . 4 1 . . Ballistic Gun 6 | 1 2 1 . 2 Ballistic Cannon . | . . . . . Launcher 2 | . . . . 2 Special Weapon 2 | . . 2 . . Impact Weapon . | . . . . . Slashing Weapon 2 | . 2 . . . Piercing Weapon . | . . . . . Special Melee Weapon . | . . . . . Unidentified Prototypes . | . . . . . Parts Lost 6 | . . 2 . 4 Power 2 | . . 1 . 1 Propulsion 2 | . . 1 . 1 Utility . | . . . . . Weapon 2 | . . . . 2 Highest Loss Streak 4 | . . 2 . 4 To Critical Strikes . | . . . . . Average Slot Usage (%) 97 | . 98 96 100 96 Engine 6 | . 14 . . . Core 6 | . . 11 14 12 Treads 15 | . 18 14 14 8 Wheel 11 | . 9 13 14 17 Device 4 | . 11 . . . Storage 14 | . 15 14 14 14 Hackware 8 | . 1 14 14 14 Energy Gun 1 | . 2 . . 3 Energy Cannon 12 | . 10 14 14 7 Ballistic Gun 9 | . 13 7 . 12 Special Weapon 4 | . . 6 14 . Naked Turns . | . . . . . Heaviest Build 54 | 12 51 52 50 54 Greatest Support 40 | 16 40 20 16 16 Greatest Overweight (x) 16 | 1 3 16 3 3 Average Overweight (x) 1 | . . 2 3 3 Largest Inventory Capacity 20 | 8 20 20 20 20 Average Capacity 15 | 7 9 20 20 20 Most Carried 20 | 4 10 20 20 20 Average Carried 12 | 2 7 15 19 19 Final Capacity 20 | 8 20 20 20 20 Final Carried 20 | 3 10 19 20 17 Class Distribution -------------------- 97% | Mutant Dominant Class ---------------- Mutant | -10/Materials Mutant | -10/Mines Mutant | -10/Exiles Scavenger-Mutant | -9/Mines Resources | -11 -10 -10 -10 -9 ----------- Run | Scr Mat Min Exi Min Matter Collected 883 | 226 448 169 . 40 Remotely . | . . . . . Salvage Created 867 | . 460 220 . 187 Parts 34 | . 22 8 . 4 Haulers Intercepted . | . . . . . Recyclers Shooed . | . . . . . Parts Field Recycled . | . . . . . Retrieved Matter . | . . . . . Parts Self-Destructed . | . . . . . Prevented . | . . . . . Kills | -11 -10 -10 -10 -9 ------- Run | Scr Mat Min Exi Min Combat Hostiles Destroyed 22 | . 9 3 . 10 Guns 7 | . 3 1 . 3 Cannons 9 | . 6 2 . 1 AOE 6 | . . . . 6 Classes Destroyed 7 | . 5 . . 2 Recycler 4 | . 2 1 . 1 Operator 2 | . 2 . . . Watcher 1 | . 1 . . . Swarmer 2 | . 2 . . . Grunt 13 | . 7 3 . 3 Demolisher 2 | . . . . 2 Assembled 5 | . . . . 5 Best Kill Streak 7 | . 4 2 . 7 Combat Bots Only 6 | . 2 2 . 6 Max Kills in Single Turn 3 | . 2 1 . 3 Gunslinging . | . . . . . Exploded 3 | . . . . 3 Melee . | . . . . . Uniques/NPCs Destroyed . | . . . . . Combat | -11 -10 -10 -10 -9 -------- Run | Scr Mat Min Exi Min Damage Taken 1113 | . 419 245 . 449 Core 256 | . 45 44 . 167 Absorbed by Shields . | . . . . . Core Remaining (%) 100 | 100 . . . . Volleys Fired 62 | . 35 11 . 16 Largest 2 | . 2 2 . 2 Hottest 168 | . 91 168 . 93 Shots Fired 119 | . 70 20 . 29 Gun 71 | . 47 8 . 16 Cannon 38 | . 23 10 . 5 Launcher 8 | . . . . 8 Special 2 | . . 2 . . Kinetic 56 | . 35 8 . 13 Thermal 55 | . 35 12 . 8 Explosive 8 | . . . . 8 Electromagnetic . | . . . . . Robot Hit Streak 16 | . 8 12 . 16 Robot Miss Streak 3 | . 3 1 . 2 Penetration Max . | . . . . . Secondary Targets . | . . . . . Shots Hit Robots 75 | . 43 15 . 17 Core Hits 55 | . 21 6 . 28 Critical Kills . | . . . . . Critical Parts Destroyed . | . . . . . Critical Strikes . | . . . . . Melee Attacks 11 | . 11 . . . Impact . | . . . . . Slashing 11 | . 11 . . . Piercing . | . . . . . Sneak Attacks . | . . . . . Combat Hostiles . | . . . . . Follow-up Attacks . | . . . . . Damage Inflicted 1699 | . 553 295 . 851 Guns 521 | . 279 88 . 154 Cannons 555 | . 267 207 . 81 Explosions 616 | . . . . 616 Melee . | . . . . . Ramming 7 | . 7 . . . Kinetic 374 | . 168 88 . 118 Thermal 702 | . 378 207 . 117 Explosive 616 | . . . . 616 Electromagnetic . | . . . . . Impact . | . . . . . Slashing . | . . . . . Piercing . | . . . . . Highest Corruption . | . . . . . Average Corruption . | . . . . . Corruption Purged . | . . . . . Corruption Blocked . | . . . . . Overload Shots . | . . . . . Overflow Damage 44 | . 16 . . 28 Projectiles 16 | . 16 . . . Explosions 28 | . . . . 28 Melee . | . . . . . Knockbacks . | . . . . . Impact . | . . . . . Kinetic . | . . . . . Secondary . | . . . . . Self-Inflicted Damage 66 | . 51 . . 15 Shots 2 | . 1 . . 1 Rammed 3 | . 3 . . . Targets Rammed 3 | . 3 . . . Kicked . | . . . . . Crushed . | . . . . . Highest Temperature 270 | . 153 270 . 226 Average Temperature 66 | . 42 100 . 76 Received Heat Transfer 354 | . 171 165 . 18 Siege Activations . | . . . . . Robots Corrupted . | . . . . . Combat Hostiles . | . . . . . Parts Fried . | . . . . . Impact Corruptions . | . . . . . Robots Melted . | . . . . . Combat Hostiles . | . . . . . Parts Melted 1 | . . . . 1 Heat Transferred 1397 | . 805 370 . 222 Parts Sabotaged . | . . . . . Parts Stolen . | . . . . . Parts Stripped . | . . . . . Power Chain Reactions . | . . . . . Missiles Intercepted . | . . . . . Alert | -11 -10 -10 -10 -9 ------- Run | Scr Mat Min Exi Min Peak Influence 212 | . 212 74 . 126 Initial 39 | . . 39 . . Average 70 | . 101 37 . 75 Maximum Alert Level 1 | . 1 . . . Low Security (%) 99 | 100 99 100 . 100 Level 1 . | . . . . . Level 2 . | . . . . . Level 3 . | . . . . . Level 4 . | . . . . . Level 5 . | . . . . . High Security . | . . . . . Max Security . | . . . . . Squads Dispatched 1 | . 1 . . . Investigation . | . . . . . Extermination . | . . . . . Reinforcement 1 | . 1 . . . Assault . | . . . . . Garrison . | . . . . . Intercept . | . . . . . Searches Triggered . | . . . . . Construction Impeded . | . . . . . Haulers Reinforced . | . . . . . Active Scanning Responses . | . . . . . Cargo Convoy Interrupts . | . . . . . Stealth | -11 -10 -10 -10 -9 --------- Run | Scr Mat Min Exi Min Distress Signals 2 | . 2 . . . Communications Jammed . | . . . . . Distress Signals . | . . . . . Times Spotted 44 | . 23 5 . 16 Peak Tracking Total 6 | . 4 2 . 6 Tactical Retreats 1 | . 1 . . . Traps | -11 -10 -10 -10 -9 ------- Run | Scr Mat Min Exi Min Traps Triggered 3 | . 2 1 . . Indirectly . | . . . . . Trap Hack Attempts . | . . . . . Triggered . | . . . . . Disarmed . | . . . . . Reprogrammed . | . . . . . Reused . | . . . . . Traps Extracted . | . . . . . Installed . | . . . . . Triggered . | . . . . . Exploded 2 | . . . 2 . Machines | -11 -10 -10 -10 -9 ---------- Run | Scr Mat Min Exi Min Machines Disabled 3 | . 3 . . . Max in Single Turn 2 | . 2 . . . Machines Sabotaged . | . . . . . Garrisons Compromised . | . . . . . Overloaded Fab Kills . | . . . . . Hacking | -11 -10 -10 -10 -9 --------- Run | Scr Mat Min Exi Min Machines Accessed 10 | . 9 1 . . Terminals 7 | . 7 . . . Fabricators . | . . . . . Repair Stations . | . . . . . Recycling Units 2 | . 2 . . . Scanalyzers . | . . . . . Garrison Access . | . . . . . Total Hacks 18 | . 17 1 . . Successful 10 | . 9 1 . . Failed 8 | . 8 . . . Catastrophic . | . . . . . Database Lockouts . | . . . . . Manual 9 | . 8 . 1 . Terminals 14 | . 14 . . . Fabricators . | . . . . . Repair Stations . | . . . . . Recycling Units 3 | . 3 . . . Scanalyzers . | . . . . . Garrison Access . | . . . . . Terminal Hacks 7 | . 6 1 . . Record 2 | . 2 . . . Open Door 1 | . . 1 . . Branch Access Points 1 | . 1 . . . Locate Traps 2 | . 2 . . . Hauler Manifests 1 | . 1 . . . Fabricator Hacks . | . . . . . Repair Station Hacks . | . . . . . Recycling Unit Hacks 3 | . 3 . . . Report Inventory 2 | . 2 . . . Retrieve Components 1 | . 1 . . . Scanalyzer . | . . . . . Garrison Access Hacks . | . . . . . Unauthorized Hacks . | . . . . . Terminals . | . . . . . Fabricators . | . . . . . Repair Stations . | . . . . . Recycling Units . | . . . . . Scanalyzers . | . . . . . Garrison Access . | . . . . . Data Cores Recovered . | . . . . . Used . | . . . . . Hacking Detections 8 | . 8 . . . Full Trace Events . | . . . . . Feedback Events . | . . . . . Feedback Blocked . | . . . . . Robot Schematics Acquired . | . . . . . Robots Built . | . . . . . Authchips . | . . . . . Time . | . . . . . Total Robot Build Rating . | . . . . . Part Schematics Acquired . | . . . . . Parts Built . | . . . . . Authchips . | . . . . . Time . | . . . . . Total Part Build Rating . | . . . . . Parts Repaired . | . . . . . Time . | . . . . . Parts Recycled . | . . . . . Recycled Matter . | . . . . . Retrieved Matter . | . . . . . Retrieved Components 1 | . 1 . . . Parts Scanalyzed . | . . . . . Part Schematics Acquired . | . . . . . Parts Damaged . | . . . . . Bothacking | -11 -10 -10 -10 -9 ------------ Run | Scr Mat Min Exi Min Used RIF Installer . | . . . . . Robots Hacked . | . . . . . Non-combat . | . . . . . Combat . | . . . . . Robot Hacks Applied . | . . . . . Relay Couplers Released . | . . . . . Fabnet Peak Effective % . | . . . . . Robots Rewired . | . . . . . Allies Hacked . | . . . . . Hacks Repelled . | . . . . . Allies | -11 -10 -10 -10 -9 -------- Run | Scr Mat Min Exi Min Total Allies 3 | . . 3 . . Largest Group 3 | . . 3 2 2 Highest-Rated Group 40 | . . 40 29 29 Highest-Rated Ally 16 | . . 16 16 16 Total Orders . | . . . . . Ally Attacks 37 | . . 21 . 16 Total Damage 382 | . . 215 . 167 Kills 3 | . . 2 . 1 Allies Corrupted . | . . . . . Allies Melted . | . . . . . Intel | -11 -10 -10 -10 -9 ------- Run | Scr Mat Min Exi Min Robot Analysis Total . | . . . . . Derelict Logs Recovered 1 | . . 1 . . Drone Launches . | . . . . . Drone Recoveries . | . . . . . Exploration | -11 -10 -10 -10 -9 ------------- Run | Scr Mat Min Exi Min Turns Passed 2813 | 62 1226 1070 350 105 Spaces Moved 1754 | 49 752 678 240 35 Core 9 | 7 1 1 . . Treads 257 | . 252 5 . . Legs . | . . . . . Wheels 1488 | 42 499 672 240 35 Hover . | . . . . . Flight . | . . . . . Fastest Speed 50 | 50 100 130 145 145 Average Speed 135 | 97 126 144 145 145 Slowest Speed 850 | 100 200 850 145 145 Overloaded Moves . | . . . . . Propulsion Burnouts . | . . . . . Robots Hopped . | . . . . . Cave-ins Triggered . | . . . . . Exploration Rate (%) 54 | 4 97 93 64 14 Regions Visited 4 Branch Regions 3 Pre-discovered Areas . | . . . . . Known Exits Taken 1 | . 1 . . . Unknown Exits Taken 3 | 1 . 1 1 . Scrap Searched 1 | . . 1 . . Spaces Dug 8 | . 7 1 . . Terrain Destroyed 71 | . 27 2 . 42 Melee 7 | . 7 . . . Projectile 2 | . . 2 . . AOE 62 | . 20 . . 42 Terrain Rammed . | . . . . . Walls Destroyed . | . . . . . Machines Disabled . | . . . . . Actions | -11 -10 -10 -10 -9 --------- Run | Scr Mat Min Exi Min Total 2042 | 63 932 743 242 62 Wait 95 | . 68 24 . 3 Move 1750 | 48 751 677 239 35 Hop . | . . . . . Pick Up 50 | 9 20 18 2 1 Fast Attach 4 | . 4 . . . Attach 18 | 6 3 5 . 4 Detach . | . . . . . Swap 31 | . 24 4 . 3 Drop 18 | . 13 4 1 . Fire 62 | . 35 11 . 16 Melee 11 | . 11 . . . Ram 3 | . 3 . . . Kick . | . . . . . Crush . | . . . . . Escape Stasis . | . . . . . Rewire . | . . . . . Trap . | . . . . . Miscellaneous . | . . . . . Route ------- -11/Scrapyard -10/Materials (discovered 5 exits: [*Mat x3] / *Min x2) -10/Mines (discovered 3 exits: [*Mat x2] / *Exi) -10/Exiles -9/Mines History --------- Turn | Location | Event 7 | -11/Scrapyard | Discovered new exit (range 15) 63 | -11/Scrapyard | Entered Materials 68 | -10/Materials | Identified exit to Mines 304 | -10/Materials | Build established: Mutant 673 | -10/Materials | Discovered new exit (range 9) 1030 | -10/Materials | Discovered new exit (range 8) 1183 | -10/Materials | Discovered new exit (range 16) 1289 | -10/Materials | Entered Mines 1311 | -10/Mines | Met a Derelict bent on vengeance 1532 | -10/Mines | Assisted by bots powering up and referring to "LRC-V3" 1561 | -10/Mines | Deemed a non-threat by the Exiles lab entrance 1561 | -10/Mines | Discovered new exit (range 5) 1644 | -10/Mines | Met a Derelict who couldn't figure out how to use a Trap Extractor 1904 | -10/Mines | Discovered new exit (range 15) 1985 | -10/Mines | Discovered new exit (range 7) 2359 | -10/Mines | Entered Exiles 2359 | -10/Exiles | Accompanied by 2 allies 2394 | -10/Exiles | Met 8R-AWN 2419 | -10/Exiles | Met EX-HEX 2467 | -10/Exiles | Met EX-BIN 2490 | -10/Exiles | Aligned with FarCom system 2491 | -10/Exiles | Given EX-Vault access code 2525 | -10/Exiles | Opened EX-Vault 2533 | -10/Exiles | Found Prototype Device 2566 | -10/Exiles | Warned to stay clear of 0b10 Research branches 2585 | -10/Exiles | Exiles lab attacked by MAIN.C 2695 | -10/Exiles | Discovered new exit (range 10) 2709 | -10/Exiles | Left Exiles lab with Supersonic Drone Bay 2709 | -10/Exiles | Entered Mines 2709 | -9/Mines | Accompanied by 2 allies 2743 | -9/Mines | Assembled infested the area 2757 | -9/Mines | A weapon hastily lodged in a ceiling crevice suddenly fell to the ground 2780 | -9/Mines | Core integrity fell below 50% 2782 | -9/Mines | Core integrity fell below 20% 2809 | -9/Mines | Lost 4 parts (1p1n2w) 2814 | -9/Mines | Destroyed by as-81795 with Assembled Maul Last Messages --------------- 02770_ as-29696 destroyed. 02770_ Destroyed Asb. Hover Unit. 02772_ as-24552 destroyed. 02775_ Destroyed Shock Absorption System. 02776_ Imp. Grenade Launcher destroyed. 02776_ Lgt. Treads destroyed. 02776_ Trooper 1b destroyed. 02777_ The unstable cave ceiling collapses. 02777_ Minigun destroyed. 02778_ The unstable cave ceiling collapses. 02778_ Lgt. Nuclear Core destroyed. 02780_ The unstable cave ceiling collapses. 02783_ D-53 Grenadier destroyed. 02784_ The unstable cave ceiling collapses. 02793_ Acquired Mak. Hammer. 02796_ The unstable cave ceiling collapses. 02808_ as-52341 destroyed. 02809_ The unstable cave ceiling collapses. 02812_ Knocked back. 02813_ A derelict is hurriedly installing traps. Map ----- +----------------------------------------------------+ | ?????????????????????????????????????? | | ?????????????????????????????????????? | | ?????????????????????????????????????? | | ?????????????????????????????????????? | | ?????????????????????????????????????? | | ?????????????????????????????????????? | | ?????????????????????????????????????? | | ?????????????????????????????????????? | | ?????????????????????????????????????? | | ?????????????????????????????????????? | | ??????????????????????? ????????????? | | ????????????????????? ????????????? | | ????????????????????^ ????????????? | | ???????????????????? ????????????? | | ????????????????? # ????????????? | | ??????????????? # ^ ????????????? | | ???????????????? # ^ ????????##??? | | ????????????????? ##????? ##?? | | ?????????????????? ##??? ??? | | ??????????????????# ##?? #??? | | ??????????????????# ### #??? | | ???????????????????# # #??? | | ???????????????###?# % # #??? | | ??????????????## ## # #???? | | ?????????????## # # #????? | | ?????????????# < r @# #??????? | | ????????????# %a #??????? | | ???????????# == # # #??????? | | ???????????# ?????# ##??????? | | ??????????????????### #???????? | | ????????????????????# # ##??????? | | ????????????????????# ###?????? | | ????????????????????# # #?????? | | ????????????????????# #?????? | | ????????????????????## # #?????? | | ?????????????????????# # #?????? | | ????????????????????# # #?????? | | ????????????????????## # ##?????? | | ?????????????????????# ##??????? | | ???????????????????### #???????? | | ??????????????????## ##???????? | | ??????????????????# #????????? | | ??????????????????# ##???????? | | ?????????????????## #???????? | | ????????????????## #???????? | | ????????????????# #???????? | | ????????????????# ##??????? | | ????????????????### ## ! #??????? | | ??????????????????### #?# %%#??????? | | ????????????????????###??# %=#??????? | +----------------------------------------------------+ Best States ------------- Heat Dissipation 39 Energy Generation 14 Energy Capacity 250 Matter Stores 329 Matter Capacity 450 Sight Range 16 Terrain Scan Density 10 Evasion (%) 40 Recoil Reduction 2 Offensive Hacking 10 Item Schematics ----------------- None Robot Schematics ------------------ None Fabricated ------------ Nothing Alien Tech Used ----------------- None Achievements -------------- None Challenges ------------ None Game ------ Seed GrapheneZioniteThruster Manual? 0 Play Time 00:33:06 Cumulative 11.3 hours Start 2022.06.13 @ 08:34:28 End 2022.06.13 @ 09:51:33 Sessions 2 Manual Loads 0 Difficulty Rogue Special Mode None Game No. 15 Rogue 15 Adventurer 0 Explorer 0 Win Type - Total 0 Types 0/0/0/0/0/0/0/0/0 Lore% 3 Gallery% 15 Achievement% 15 Wizard Run 0 Options --------- ASCII 0 Keyboard 0 Movement Numpad Keybinds 0 Fullscreen 1 Font 12/Smallcaps Map View 83x54 Tactical HUD 1 Map Filters NONE Filters NONE Steam 1 RUN: 79cbef6a-a0de-4f11-80c8-aa4aa5110905